[Event "*** Titled Tuesday Blitz AM"]
[Site "Chess.com"]
[Date "2020.01.07"]
[Round "3"]
[White "Gabrielian_Artur"]
[Black "Artem_Ilyin"]
[Result "1-0"]
[WhiteElo "2818"]
[BlackElo "2528"]
[TimeControl "180+2"]
[EndTime "9:35:15 PST"]
[Termination "Gabrielian_Artur won by resignation"]

1. d4 {[%clk 0:03:01.9]} 1... d5 {[%clk 0:02:59.9]} 2. c4 {[%clk 0:03:02.9]}
2... e6 {[%clk 0:03:01.1]} 3. Nc3 {[%clk 0:03:03]} 3... Nf6 {[%clk 0:03:01.9]}
4. Nf3 {[%clk 0:03:04]} 4... Be7 {[%clk 0:03:02.6]} 5. Bg5 {[%clk 0:03:03.2]}
5... Nbd7 {[%clk 0:03:02.6]} 6. e3 {[%clk 0:03:04.1]} 6... h6 {[%clk 0:03:03.7]}
7. Bh4 {[%clk 0:03:03.6]} 7... O-O {[%clk 0:03:04.6]} 8. Rc1 {[%clk 0:03:03.9]}
8... c5 {[%clk 0:03:05.6]} 9. cxd5 {[%clk 0:03:00.5]} 9... Nxd5 {[%clk
0:03:00.8]} 10. Bxe7 {[%clk 0:03:00.8]} 10... Nxe7 {[%clk 0:03:01.3]} 11. Bd3
{[%clk 0:02:55.4]} 11... cxd4 {[%clk 0:02:54.8]} 12. exd4 {[%clk 0:02:56.6]}
12... Nf6 {[%clk 0:02:54.4]} 13. O-O {[%clk 0:02:57.6]} 13... b6 {[%clk
0:02:48.8]} 14. Re1 {[%clk 0:02:54.9]} 14... Bb7 {[%clk 0:02:49.3]} 15. Ne5
{[%clk 0:02:56.1]} 15... Rc8 {[%clk 0:02:37.7]} 16. Re3 {[%clk 0:02:53.1]} 16...
Ned5 {[%clk 0:02:14.7]} 17. Rg3 {[%clk 0:02:52.3]} 17... Qd6 {[%clk 0:01:53.2]}
18. Qd2 {[%clk 0:02:49.7]} 18... Kh8 {[%clk 0:01:44.9]} 19. Re1 {[%clk
0:02:35.4]} 19... Ne7 {[%clk 0:01:36.3]} 20. Nb5 {[%clk 0:01:54.8]} 20... Qb8
{[%clk 0:01:03.3]} 21. Rh3 {[%clk 0:01:50]} 21... Neg8 {[%clk 0:01:00.1]} 22. g4
{[%clk 0:01:44.9]} 22... a6 {[%clk 0:00:25.4]} 23. g5 {[%clk 0:01:45.7]} 23...
axb5 {[%clk 0:00:19]} 24. gxf6 {[%clk 0:01:46.4]} 24... Nxf6 {[%clk 0:00:19.8]}
25. Rxh6+ {[%clk 0:01:47.5]} 25... Kg8 {[%clk 0:00:18.4]} 26. Rxf6 {[%clk
0:01:44.8]} 26... gxf6 {[%clk 0:00:19.1]} 27. Qh6 {[%clk 0:01:45.7]} 27... f5
{[%clk 0:00:18.4]} 28. Nd7 {[%clk 0:01:38.9]} 1-0

[Event "*** Titled Tuesday Blitz AM"]
[Site "Chess.com"]
[Date "2020.01.07"]
[Round "3"]
[White "Martins-BR"]
[Black "politeplayer"]
[Result "0-1"]
[WhiteElo "2357"]
[BlackElo "2126"]
[TimeControl "180+2"]
[EndTime "9:35:17 PST"]
[Termination "politeplayer won by resignation"]

1. e4 {[%clk 0:03:01.9]} 1... c5 {[%clk 0:02:59.7]} 2. Nf3 {[%clk 0:03:02.4]}
2... d6 {[%clk 0:03:01.1]} 3. d4 {[%clk 0:03:01.3]} 3... cxd4 {[%clk 0:03:02.5]}
4. Nxd4 {[%clk 0:03:03]} 4... Nf6 {[%clk 0:03:03.7]} 5. Nc3 {[%clk 0:03:04.1]}
5... g6 {[%clk 0:03:05.2]} 6. Be3 {[%clk 0:03:05]} 6... Bg7 {[%clk 0:03:06.6]}
7. f3 {[%clk 0:03:06]} 7... O-O {[%clk 0:03:07.5]} 8. Qd2 {[%clk 0:03:07.2]}
8... Nc6 {[%clk 0:03:08.1]} 9. g4 {[%clk 0:03:08.3]} 9... Be6 {[%clk 0:03:04.5]}
10. Nxe6 {[%clk 0:03:08.8]} 10... fxe6 {[%clk 0:03:01.2]} 11. O-O-O {[%clk
0:03:09.5]} 11... Ne5 {[%clk 0:02:58.8]} 12. Be2 {[%clk 0:02:59.7]} 12... Qa5
{[%clk 0:02:58.4]} 13. h4 {[%clk 0:02:42.2]} 13... Rac8 {[%clk 0:02:57.1]} 14.
a3 {[%clk 0:02:42.4]} 14... a6 {[%clk 0:02:36.9]} 15. h5 {[%clk 0:02:33.6]}
15... b5 {[%clk 0:02:36.1]} 16. hxg6 {[%clk 0:02:33.2]} 16... b4 {[%clk
0:02:25.9]} 17. axb4 {[%clk 0:02:33.4]} 17... Qa1+ {[%clk 0:02:23.7]} 18. Nb1
{[%clk 0:02:33.4]} 18... Nxe4 {[%clk 0:02:17.8]} 19. fxe4 {[%clk 0:02:07.7]}
19... Nc4 {[%clk 0:02:05.8]} 20. gxh7+ {[%clk 0:01:57.1]} 20... Kh8 {[%clk
0:02:06.4]} 21. c3 {[%clk 0:01:46.2]} 21... Nxd2 {[%clk 0:02:03.1]} 22. Bxd2
{[%clk 0:00:46.5]} 22... a5 {[%clk 0:01:53.2]} 23. bxa5 {[%clk 0:00:39.9]} 23...
Rb8 {[%clk 0:01:51.3]} 24. b4 {[%clk 0:00:38.3]} 24... Rfc8 {[%clk 0:01:48.8]}
25. Kc2 {[%clk 0:00:31]} 25... Rxb4 {[%clk 0:01:46.8]} 26. Kd3 {[%clk
0:00:31.9]} 26... Rxb1 {[%clk 0:01:27.7]} 27. Rxb1 {[%clk 0:00:31.1]} 27...
Rxc3+ {[%clk 0:01:29]} 0-1

[Event "*** Titled Tuesday Blitz AM"]
[Site "Chess.com"]
[Date "2020.01.07"]
[Round "3"]
[White "Gordima"]
[Black "Kirill_Kopenkin"]
[Result "1-0"]
[WhiteElo "2832"]
[BlackElo "2494"]
[TimeControl "180+2"]
[EndTime "9:35:18 PST"]
[Termination "Gordima won by resignation"]

1. d4 {[%clk 0:03:01.9]} 1... Nf6 {[%clk 0:02:58.4]} 2. c4 {[%clk 0:03:02.7]}
2... g6 {[%clk 0:02:59.8]} 3. f3 {[%clk 0:03:03.7]} 3... Bg7 {[%clk 0:03:00.2]}
4. e4 {[%clk 0:03:04.9]} 4... d6 {[%clk 0:03:01.8]} 5. Nc3 {[%clk 0:03:05.9]}
5... O-O {[%clk 0:03:03.3]} 6. Nge2 {[%clk 0:03:06.2]} 6... c5 {[%clk
0:03:03.7]} 7. d5 {[%clk 0:03:07.2]} 7... e6 {[%clk 0:03:04]} 8. Bg5 {[%clk
0:03:04.8]} 8... exd5 {[%clk 0:03:01.6]} 9. cxd5 {[%clk 0:03:06.7]} 9... a6
{[%clk 0:02:59.1]} 10. a4 {[%clk 0:03:06.9]} 10... h6 {[%clk 0:02:54]} 11. Be3
{[%clk 0:03:07.6]} 11... Re8 {[%clk 0:02:54.9]} 12. Qd2 {[%clk 0:03:08.3]} 12...
h5 {[%clk 0:02:56.1]} 13. Bg5 {[%clk 0:03:06.4]} 13... Nbd7 {[%clk 0:02:49]} 14.
Ng3 {[%clk 0:03:04.4]} 14... Qa5 {[%clk 0:02:44.2]} 15. Be2 {[%clk 0:02:48.3]}
15... b5 {[%clk 0:02:42.2]} 16. O-O {[%clk 0:02:49.8]} 16... b4 {[%clk
0:02:41.3]} 17. Nd1 {[%clk 0:02:50.7]} 17... Nh7 {[%clk 0:02:14]} 18. Bh6 {[%clk
0:02:35.3]} 18... Bf6 {[%clk 0:02:09.6]} 19. Ne3 {[%clk 0:02:31.4]} 19... Ne5
{[%clk 0:01:59.5]} 20. f4 {[%clk 0:01:51.2]} 20... Ng4 {[%clk 0:02:00.3]} 21.
Bxg4 {[%clk 0:01:51.7]} 21... hxg4 {[%clk 0:01:56.8]} 22. Nc4 {[%clk 0:01:35.4]}
22... Qc7 {[%clk 0:01:51.7]} 23. e5 {[%clk 0:01:14.6]} 23... dxe5 {[%clk
0:01:40.2]} 24. fxe5 {[%clk 0:01:02.6]} 24... Bxe5 {[%clk 0:01:40.3]} 25. Nxe5
{[%clk 0:01:03.7]} 25... Rxe5 {[%clk 0:01:29.4]} 26. Bf4 {[%clk 0:01:04.7]}
26... Qe7 {[%clk 0:01:11.4]} 27. d6 {[%clk 0:01:00.8]} 27... Qe6 {[%clk
0:00:51.7]} 28. Bxe5 {[%clk 0:01:01]} 28... Qxe5 {[%clk 0:00:53.6]} 29. d7
{[%clk 0:01:02.1]} 1-0

[Event "*** Titled Tuesday Blitz AM"]
[Site "Chess.com"]
[Date "2020.01.07"]
[Round "3"]
[White "Hydrargyrum_Girl"]
[Black "przemekpiotrowski"]
[Result "0-1"]
[WhiteElo "2205"]
[BlackElo "2407"]
[TimeControl "180+2"]
[EndTime "9:35:30 PST"]
[Termination "przemekpiotrowski won by resignation"]

1. e4 {[%clk 0:02:57.1]} 1... c5 {[%clk 0:02:59.5]} 2. Nf3 {[%clk 0:02:57.6]}
2... d6 {[%clk 0:03:00.8]} 3. d4 {[%clk 0:02:57.5]} 3... cxd4 {[%clk 0:03:02.7]}
4. Qxd4 {[%clk 0:02:59]} 4... Nc6 {[%clk 0:02:55.3]} 5. Bb5 {[%clk 0:02:59.5]}
5... Bd7 {[%clk 0:02:56.9]} 6. Bxc6 {[%clk 0:03:00.4]} 6... Bxc6 {[%clk
0:02:58.8]} 7. Nc3 {[%clk 0:03:01.9]} 7... Nf6 {[%clk 0:03:00.2]} 8. Bg5 {[%clk
0:03:01]} 8... e6 {[%clk 0:03:00.9]} 9. O-O-O {[%clk 0:03:00.5]} 9... Be7 {[%clk
0:03:02.4]} 10. Rhe1 {[%clk 0:03:01.7]} 10... O-O {[%clk 0:03:03.1]} 11. Kb1
{[%clk 0:02:59.4]} 11... Qa5 {[%clk 0:03:04]} 12. Qd2 {[%clk 0:02:49.1]} 12...
Rfd8 {[%clk 0:02:52.6]} 13. Nd4 {[%clk 0:02:48.6]} 13... Rac8 {[%clk 0:02:35.4]}
14. f3 {[%clk 0:02:47.9]} 14... h6 {[%clk 0:02:30.6]} 15. Bh4 {[%clk 0:02:43.1]}
15... Nxe4 {[%clk 0:02:28.1]} 16. Nxe4 {[%clk 0:02:29.1]} 16... Qxd2 {[%clk
0:02:28.1]} 17. Rxd2 {[%clk 0:02:27.5]} 17... Bxh4 {[%clk 0:02:29.1]} 18. Nxc6
{[%clk 0:02:26.6]} 18... Bxe1 {[%clk 0:02:26.8]} 19. Nxd8 {[%clk 0:01:43.3]}
19... Bxd2 {[%clk 0:02:19]} 20. Nxb7 {[%clk 0:01:42.3]} 20... Bb4 {[%clk
0:02:05.7]} 21. c3 {[%clk 0:01:38.4]} 21... d5 {[%clk 0:01:52.3]} 22. cxb4
{[%clk 0:01:30.1]} 22... dxe4 {[%clk 0:01:53.1]} 23. fxe4 {[%clk 0:01:30.6]}
23... Rc4 {[%clk 0:01:54]} 24. a3 {[%clk 0:01:18.9]} 24... Rxe4 {[%clk
0:01:54.2]} 25. Ka2 {[%clk 0:01:20]} 25... Re2 {[%clk 0:01:55.3]} 26. a4 {[%clk
0:01:20.5]} 26... Rxg2 {[%clk 0:01:56.6]} 27. b5 {[%clk 0:01:21.8]} 27... Rxh2
{[%clk 0:01:57.6]} 28. a5 {[%clk 0:01:23.1]} 28... Rh5 {[%clk 0:01:58.8]} 29. b6
{[%clk 0:01:12.3]} 29... Rxa5+ {[%clk 0:01:23.9]} 30. Nxa5 {[%clk 0:01:09.8]}
30... axb6 {[%clk 0:01:25.8]} 31. Nc4 {[%clk 0:01:06.7]} 31... h5 {[%clk
0:01:27]} 32. Kb3 {[%clk 0:01:03]} 32... h4 {[%clk 0:01:28.2]} 33. Nd2 {[%clk
0:01:03.7]} 33... g5 {[%clk 0:01:27.3]} 34. Nf3 {[%clk 0:01:02.7]} 34... h3
{[%clk 0:01:28.2]} 35. Nh2 {[%clk 0:00:55.4]} 35... f5 {[%clk 0:01:29.3]} 36.
Kb4 {[%clk 0:00:54.7]} 36... g4 {[%clk 0:01:30.7]} 37. Kb5 {[%clk 0:00:55.4]}
37... g3 {[%clk 0:01:32.2]} 38. Nf3 {[%clk 0:00:54.9]} 38... h2 {[%clk
0:01:33.6]} 0-1

[Event "*** Titled Tuesday Blitz AM"]
[Site "Chess.com"]
[Date "2020.01.07"]
[Round "3"]
[White "nonscitis"]
[Black "petrpalachev"]
[Result "0-1"]
[WhiteElo "2571"]
[BlackElo "2826"]
[TimeControl "180+2"]
[EndTime "9:35:36 PST"]
[Termination "petrpalachev won by resignation"]

1. d4 {[%clk 0:03:01.9]} 1... d5 {[%clk 0:02:59.6]} 2. Nf3 {[%clk 0:03:00.4]}
2... Nf6 {[%clk 0:03:00.6]} 3. Bf4 {[%clk 0:02:59.6]} 3... c5 {[%clk 0:03:01.7]}
4. e3 {[%clk 0:02:58.7]} 4... Nc6 {[%clk 0:03:02.8]} 5. Nc3 {[%clk 0:02:56.4]}
5... cxd4 {[%clk 0:02:58.4]} 6. exd4 {[%clk 0:02:24.2]} 6... a6 {[%clk
0:02:58.5]} 7. Be2 {[%clk 0:02:23.5]} 7... Bg4 {[%clk 0:02:59.3]} 8. O-O {[%clk
0:02:22.9]} 8... Bxf3 {[%clk 0:03:00.2]} 9. Bxf3 {[%clk 0:02:22]} 9... e6 {[%clk
0:03:02.1]} 10. Ne2 {[%clk 0:02:20.8]} 10... Bd6 {[%clk 0:03:02.2]} 11. c3
{[%clk 0:02:18.6]} 11... O-O {[%clk 0:03:02.7]} 12. Qd2 {[%clk 0:02:16]} 12...
b5 {[%clk 0:02:57.6]} 13. g4 {[%clk 0:02:03.1]} 13... Bxf4 {[%clk 0:02:51.3]}
14. Qxf4 {[%clk 0:01:58.6]} 14... Qb8 {[%clk 0:02:51.8]} 15. Rfd1 {[%clk
0:01:52.1]} 15... Rc8 {[%clk 0:02:39.7]} 16. Rac1 {[%clk 0:01:49.9]} 16... a5
{[%clk 0:02:34.2]} 17. g5 {[%clk 0:01:45.9]} 17... Qxf4 {[%clk 0:02:29.5]} 18.
Nxf4 {[%clk 0:01:44.6]} 18... Nd7 {[%clk 0:02:31.4]} 19. Nd3 {[%clk 0:01:45.2]}
19... Rab8 {[%clk 0:02:20]} 20. a3 {[%clk 0:01:25.7]} 20... Kf8 {[%clk
0:02:15.3]} 21. b4 {[%clk 0:01:23.1]} 21... Nb6 {[%clk 0:02:04.8]} 22. Nc5
{[%clk 0:01:21.6]} 22... Ke7 {[%clk 0:01:58.4]} 23. Be2 {[%clk 0:01:21.8]} 23...
Nc4 {[%clk 0:01:57.9]} 24. Bxc4 {[%clk 0:01:22.1]} 24... bxc4 {[%clk 0:01:58.9]}
25. Rb1 {[%clk 0:01:14]} 25... axb4 {[%clk 0:01:50.5]} 26. axb4 {[%clk
0:01:15.9]} 26... Na7 {[%clk 0:01:51]} 27. Ra1 {[%clk 0:00:59.1]} 27... Nb5
{[%clk 0:01:51.5]} 28. Na4 {[%clk 0:00:59.9]} 28... Rc6 {[%clk 0:01:45.3]} 29.
Rdc1 {[%clk 0:00:46.4]} 29... Ra6 {[%clk 0:01:32.5]} 30. Nc5 {[%clk 0:00:46.5]}
30... Rxa1 {[%clk 0:01:33]} 31. Rxa1 {[%clk 0:00:48.4]} 31... Nxc3 {[%clk
0:01:27.1]} 32. Ra7+ {[%clk 0:00:49.1]} 32... Ke8 {[%clk 0:01:28.4]} 33. Nb7
{[%clk 0:00:46.1]} 33... Nb5 {[%clk 0:01:14.1]} 0-1

[Event "*** Titled Tuesday Blitz AM"]
[Site "Chess.com"]
[Date "2020.01.07"]
[Round "3"]
[White "Oleksandr_Bortnyk"]
[Black "dawtonlms"]
[Result "1-0"]
[WhiteElo "3004"]
[BlackElo "2327"]
[TimeControl "180+2"]
[EndTime "9:35:37 PST"]
[Termination "Oleksandr_Bortnyk won by resignation"]

1. e4 {[%clk 0:03:01.9]} 1... e6 {[%clk 0:03:00.9]} 2. d4 {[%clk 0:03:01.5]}
2... d5 {[%clk 0:03:02]} 3. Nc3 {[%clk 0:03:03.4]} 3... Nf6 {[%clk 0:03:03]} 4.
Bg5 {[%clk 0:02:59.1]} 4... Bb4 {[%clk 0:03:03.1]} 5. e5 {[%clk 0:02:59.4]} 5...
h6 {[%clk 0:03:04.2]} 6. Bc1 {[%clk 0:03:00.6]} 6... Ne4 {[%clk 0:03:00.4]} 7.
Qg4 {[%clk 0:03:01.8]} 7... g6 {[%clk 0:02:58.8]} 8. Ne2 {[%clk 0:02:59]} 8...
c5 {[%clk 0:02:47]} 9. a3 {[%clk 0:02:59]} 9... Ba5 {[%clk 0:02:43]} 10. dxc5
{[%clk 0:02:54.6]} 10... Nxc3 {[%clk 0:02:36.5]} 11. Nxc3 {[%clk 0:02:56.5]}
11... Bxc3+ {[%clk 0:02:37.6]} 12. bxc3 {[%clk 0:02:57]} 12... Qa5 {[%clk
0:02:35.5]} 13. Qb4 {[%clk 0:02:57.2]} 13... Nc6 {[%clk 0:02:25.7]} 14. Bb5
{[%clk 0:02:51.7]} 14... Qc7 {[%clk 0:02:20.6]} 15. Qf4 {[%clk 0:02:42.1]} 15...
Qe7 {[%clk 0:02:10.6]} 16. Be3 {[%clk 0:02:34.9]} 16... Bd7 {[%clk 0:02:10.7]}
17. O-O {[%clk 0:02:22.3]} 17... a6 {[%clk 0:02:04.6]} 18. Be2 {[%clk
0:02:15.6]} 18... g5 {[%clk 0:01:55]} 19. Qg3 {[%clk 0:02:16.1]} 19... O-O-O
{[%clk 0:01:49.7]} 20. Rab1 {[%clk 0:02:12.5]} 20... Rdg8 {[%clk 0:01:47.9]} 21.
Rb6 {[%clk 0:01:21.5]} 21... h5 {[%clk 0:01:48.4]} 22. Rfb1 {[%clk 0:01:22.4]}
22... h4 {[%clk 0:01:46.4]} 23. Qg4 {[%clk 0:01:23.7]} 23... Nxe5 {[%clk
0:01:36.4]} 24. Qb4 {[%clk 0:00:34.6]} 24... Bc6 {[%clk 0:01:22.7]} 25. Bd4
{[%clk 0:00:35.1]} 25... f6 {[%clk 0:01:09.8]} 26. Bxe5 {[%clk 0:00:35.3]} 26...
fxe5 {[%clk 0:01:10.8]} 27. Rxc6+ {[%clk 0:00:36.6]} 1-0

[Event "*** Titled Tuesday Blitz AM"]
[Site "Chess.com"]
[Date "2020.01.07"]
[Round "3"]
[White "CarlosAlbornoz"]
[Black "gui_borba"]
[Result "1-0"]
[WhiteElo "2766"]
[BlackElo "2289"]
[TimeControl "180+2"]
[EndTime "9:35:47 PST"]
[Termination "CarlosAlbornoz won by resignation"]

1. e4 {[%clk 0:03:01.9]} 1... e5 {[%clk 0:03:00]} 2. Nf3 {[%clk 0:03:03]} 2...
Nc6 {[%clk 0:03:01]} 3. Bb5 {[%clk 0:03:04.3]} 3... a6 {[%clk 0:03:00.6]} 4. Ba4
{[%clk 0:03:05.4]} 4... Nf6 {[%clk 0:03:01.5]} 5. O-O {[%clk 0:03:06.5]} 5... b5
{[%clk 0:02:51.5]} 6. Bb3 {[%clk 0:03:07.4]} 6... Be7 {[%clk 0:02:52.5]} 7. d4
{[%clk 0:03:07.8]} 7... d6 {[%clk 0:02:39.5]} 8. c3 {[%clk 0:03:08.4]} 8... O-O
{[%clk 0:02:39.5]} 9. h3 {[%clk 0:03:07.4]} 9... Na5 {[%clk 0:02:39.7]} 10. Bc2
{[%clk 0:03:08.1]} 10... Nd7 {[%clk 0:02:18.6]} 11. Nbd2 {[%clk 0:02:53.4]}
11... c5 {[%clk 0:02:15.1]} 12. Re1 {[%clk 0:02:46.6]} 12... Bf6 {[%clk
0:02:00.5]} 13. d5 {[%clk 0:02:41.4]} 13... c4 {[%clk 0:02:00.8]} 14. b4 {[%clk
0:02:34.4]} 14... Nb7 {[%clk 0:01:56]} 15. a4 {[%clk 0:02:35]} 15... bxa4 {[%clk
0:01:47.8]} 16. Bxa4 {[%clk 0:02:34.7]} 16... Nb6 {[%clk 0:01:44.7]} 17. Bc6
{[%clk 0:02:34.8]} 17... Qc7 {[%clk 0:01:39.9]} 18. Qe2 {[%clk 0:02:27.2]} 18...
Bd7 {[%clk 0:01:31.4]} 19. Bxd7 {[%clk 0:02:27.7]} 19... Qxd7 {[%clk 0:01:30.3]}
20. Nxc4 {[%clk 0:02:28.2]} 20... Nxc4 {[%clk 0:01:30.2]} 21. Qxc4 {[%clk
0:02:29.3]} 21... Qb5 {[%clk 0:01:17.3]} 22. Qxb5 {[%clk 0:02:13.3]} 22... axb5
{[%clk 0:01:19.2]} 23. Bd2 {[%clk 0:02:06.2]} 23... Rfc8 {[%clk 0:01:16.4]} 24.
Rec1 {[%clk 0:02:04.7]} 24... Bd8 {[%clk 0:00:57.9]} 25. Ne1 {[%clk 0:02:00.4]}
25... Bb6 {[%clk 0:00:56.5]} 26. Nc2 {[%clk 0:01:58.3]} 26... g6 {[%clk
0:00:54.5]} 27. Na3 {[%clk 0:01:54.8]} 27... f5 {[%clk 0:00:28]} 28. exf5 {[%clk
0:01:55.5]} 28... gxf5 {[%clk 0:00:29.9]} 29. Nxb5 {[%clk 0:01:56.1]} 29... Kf7
{[%clk 0:00:25.6]} 30. Be3 {[%clk 0:01:53.6]} 30... Rxa1 {[%clk 0:00:20.5]} 31.
Rxa1 {[%clk 0:01:53.9]} 31... Bxe3 {[%clk 0:00:20.5]} 32. fxe3 {[%clk
0:01:54.9]} 32... Kf6 {[%clk 0:00:21.5]} 33. Ra7 {[%clk 0:01:54.6]} 33... Rb8
{[%clk 0:00:22.6]} 34. Ra6 {[%clk 0:01:39.4]} 34... e4 {[%clk 0:00:21.5]} 35.
Rb6 {[%clk 0:01:37.1]} 35... Ke5 {[%clk 0:00:22.7]} 36. Nxd6 {[%clk 0:01:37.6]}
1-0

[Event "*** Titled Tuesday Blitz AM"]
[Site "Chess.com"]
[Date "2020.01.07"]
[Round "3"]
[White "Mr_Sinigami"]
[Black "MikeSailer"]
[Result "1-0"]
[WhiteElo "2544"]
[BlackElo "2113"]
[TimeControl "180+2"]
[EndTime "9:35:53 PST"]
[Termination "Mr_Sinigami won by resignation"]

1. d4 {[%clk 0:03:01.9]} 1... d5 {[%clk 0:03:00.2]} 2. Nf3 {[%clk 0:03:02.5]}
2... Bf5 {[%clk 0:03:00.5]} 3. Bf4 {[%clk 0:03:02.6]} 3... e6 {[%clk 0:03:01]}
4. e3 {[%clk 0:03:03.3]} 4... Nc6 {[%clk 0:03:01.1]} 5. a3 {[%clk 0:03:01.1]}
5... Nf6 {[%clk 0:03:01.5]} 6. c4 {[%clk 0:02:58.1]} 6... Bd6 {[%clk 0:02:58]}
7. Bg3 {[%clk 0:02:57.5]} 7... Ne4 {[%clk 0:02:50.3]} 8. Nc3 {[%clk 0:02:53.3]}
8... Nxc3 {[%clk 0:02:49.7]} 9. bxc3 {[%clk 0:02:54]} 9... Bg4 {[%clk
0:02:36.6]} 10. Be2 {[%clk 0:02:44.3]} 10... dxc4 {[%clk 0:02:34.9]} 11. Bxc4
{[%clk 0:02:39.5]} 11... O-O {[%clk 0:02:32.5]} 12. Be2 {[%clk 0:02:29.1]} 12...
Qe7 {[%clk 0:02:29.3]} 13. O-O {[%clk 0:02:25.6]} 13... Bxg3 {[%clk 0:02:16]}
14. hxg3 {[%clk 0:02:24.7]} 14... e5 {[%clk 0:01:57.7]} 15. Re1 {[%clk
0:02:13.5]} 15... e4 {[%clk 0:01:26.6]} 16. Nd2 {[%clk 0:02:11.3]} 16... Bxe2
{[%clk 0:01:25.6]} 17. Qxe2 {[%clk 0:02:11.2]} 17... f5 {[%clk 0:01:22.4]} 18.
Reb1 {[%clk 0:02:08.7]} 18... Na5 {[%clk 0:01:14.1]} 19. Nc4 {[%clk 0:02:01.3]}
19... Nxc4 {[%clk 0:00:54.4]} 20. Qxc4+ {[%clk 0:02:00.7]} 20... Kh8 {[%clk
0:00:54.9]} 21. Rxb7 {[%clk 0:02:00.8]} 21... Rab8 {[%clk 0:00:36.7]} 22. Rab1
{[%clk 0:01:36.2]} 22... Rbc8 {[%clk 0:00:34.6]} 23. Rxa7 {[%clk 0:01:35.7]}
23... Rf6 {[%clk 0:00:26.2]} 24. Rxc7 {[%clk 0:01:24.4]} 24... Rxc7 {[%clk
0:00:21.2]} 25. Rb8+ {[%clk 0:01:23.6]} 25... Rf8 {[%clk 0:00:22]} 26. Qxc7
{[%clk 0:01:24]} 26... Qxa3 {[%clk 0:00:19.4]} 27. Qc8 {[%clk 0:01:16.8]} 1-0

[Event "*** Titled Tuesday Blitz AM"]
[Site "Chess.com"]
[Date "2020.01.07"]
[Round "3"]
[White "chigorin28"]
[Black "Sven_Tica"]
[Result "0-1"]
[WhiteElo "2404"]
[BlackElo "2655"]
[TimeControl "180+2"]
[EndTime "9:36:07 PST"]
[Termination "Sven_Tica won by resignation"]

1. e4 {[%clk 0:03:01.9]} 1... c5 {[%clk 0:02:58]} 2. Nf3 {[%clk 0:03:02.8]} 2...
Nf6 {[%clk 0:02:59.5]} 3. c3 {[%clk 0:03:03.4]} 3... Nxe4 {[%clk 0:03:00.5]} 4.
d4 {[%clk 0:03:02.5]} 4... cxd4 {[%clk 0:02:59.2]} 5. cxd4 {[%clk 0:03:03.7]}
5... d5 {[%clk 0:03:00.5]} 6. Nc3 {[%clk 0:03:04.3]} 6... Nxc3 {[%clk
0:03:01.5]} 7. bxc3 {[%clk 0:03:06.2]} 7... Nc6 {[%clk 0:03:03]} 8. Bd3 {[%clk
0:03:04.2]} 8... Bg4 {[%clk 0:03:04]} 9. h3 {[%clk 0:03:02]} 9... Bh5 {[%clk
0:03:04.3]} 10. Qb3 {[%clk 0:03:00.6]} 10... Bxf3 {[%clk 0:02:54.8]} 11. Qxb7
{[%clk 0:02:56]} 11... Qc8 {[%clk 0:02:47.6]} 12. Qxc8+ {[%clk 0:02:54.1]} 12...
Rxc8 {[%clk 0:02:48.4]} 13. gxf3 {[%clk 0:02:56]} 13... e6 {[%clk 0:02:48.4]}
14. Rg1 {[%clk 0:02:50]} 14... g6 {[%clk 0:02:47.9]} 15. h4 {[%clk 0:02:48.5]}
15... h5 {[%clk 0:02:48.4]} 16. Rb1 {[%clk 0:02:48.2]} 16... Kd7 {[%clk
0:02:40.3]} 17. Ba6 {[%clk 0:02:31.8]} 17... Rc7 {[%clk 0:02:38.4]} 18. Ke2
{[%clk 0:02:02.1]} 18... Bd6 {[%clk 0:02:35.1]} 19. Kd3 {[%clk 0:02:03.1]} 19...
Rb8 {[%clk 0:02:23.5]} 20. Bd2 {[%clk 0:01:52.4]} 20... Rxb1 {[%clk 0:02:11.8]}
21. Rxb1 {[%clk 0:01:54.3]} 21... Na5 {[%clk 0:02:09.3]} 22. Bg5 {[%clk
0:01:38.5]} 22... Be7 {[%clk 0:01:43.9]} 23. Bb5+ {[%clk 0:01:31.6]} 23... Kd8
{[%clk 0:01:43.4]} 24. Bf4 {[%clk 0:01:32.3]} 24... Rb7 {[%clk 0:01:43.8]} 25.
Kc2 {[%clk 0:00:49]} 25... Bxh4 {[%clk 0:01:44]} 26. Ba6 {[%clk 0:00:28.8]}
26... Rxb1 {[%clk 0:01:43.7]} 27. Kxb1 {[%clk 0:00:30.7]} 27... Bxf2 {[%clk
0:01:43.6]} 28. Kc2 {[%clk 0:00:27.9]} 28... Nc4 {[%clk 0:01:37.6]} 29. Kd3
{[%clk 0:00:27.5]} 29... h4 {[%clk 0:01:33.4]} 30. Ke2 {[%clk 0:00:17.3]} 30...
Bg3 {[%clk 0:01:34.6]} 31. Bxg3 {[%clk 0:00:15.4]} 31... hxg3 {[%clk 0:01:36.5]}
32. f4 {[%clk 0:00:14.8]} 32... Nd6 {[%clk 0:01:35]} 33. Kf3 {[%clk 0:00:14.6]}
33... Ne4 {[%clk 0:01:34.6]} 34. c4 {[%clk 0:00:11.8]} 34... dxc4 {[%clk
0:01:35.6]} 35. Bb7 {[%clk 0:00:10.7]} 35... Nd6 {[%clk 0:01:33.8]} 36. Ba6
{[%clk 0:00:10.4]} 36... c3 {[%clk 0:01:33.8]} 37. Bd3 {[%clk 0:00:11.5]} 37...
Nf5 {[%clk 0:01:34.9]} 38. Be4 {[%clk 0:00:09.8]} 38... c2 {[%clk 0:01:34.8]}
39. Bxc2 {[%clk 0:00:09]} 39... Nxd4+ {[%clk 0:01:35.3]} 0-1

[Event "*** Titled Tuesday Blitz AM"]
[Site "Chess.com"]
[Date "2020.01.07"]
[Round "3"]
[White "EugeneRougon"]
[Black "viditchess"]
[Result "0-1"]
[WhiteElo "2723"]
[BlackElo "2992"]
[TimeControl "180+2"]
[EndTime "9:36:14 PST"]
[Termination "viditchess won by resignation"]

1. e4 {[%clk 0:03:01.7]} 1... c6 {[%clk 0:02:59.6]} 2. d4 {[%clk 0:03:02.4]}
2... d5 {[%clk 0:03:00.8]} 3. Nc3 {[%clk 0:03:04]} 3... dxe4 {[%clk 0:02:59.6]}
4. Nxe4 {[%clk 0:03:05.6]} 4... Nf6 {[%clk 0:03:00.7]} 5. Nxf6+ {[%clk
0:03:06.6]} 5... exf6 {[%clk 0:03:02.6]} 6. c3 {[%clk 0:03:07.7]} 6... Bd6
{[%clk 0:03:03]} 7. Bd3 {[%clk 0:03:09.3]} 7... O-O {[%clk 0:03:03.2]} 8. Qc2
{[%clk 0:03:10.6]} 8... Re8+ {[%clk 0:03:03.9]} 9. Ne2 {[%clk 0:03:12.2]} 9...
h5 {[%clk 0:03:05.5]} 10. Be3 {[%clk 0:03:13.8]} 10... h4 {[%clk 0:03:00.4]} 11.
O-O-O {[%clk 0:03:12.8]} 11... Nd7 {[%clk 0:02:59.3]} 12. g4 {[%clk 0:03:04.8]}
12... Nb6 {[%clk 0:02:57.6]} 13. g5 {[%clk 0:02:59.1]} 13... fxg5 {[%clk
0:02:55.1]} 14. Rhg1 {[%clk 0:02:56.6]} 14... g4 {[%clk 0:02:54.6]} 15. Bh7+
{[%clk 0:02:47]} 15... Kh8 {[%clk 0:02:49]} 16. Bf5 {[%clk 0:02:48.7]} 16... Nd5
{[%clk 0:02:41.3]} 17. Bxg4 {[%clk 0:01:58.2]} 17... Rxe3 {[%clk 0:02:07.3]} 18.
Bxc8 {[%clk 0:01:55]} 18... Rxe2 {[%clk 0:01:55.7]} 19. Qxe2 {[%clk 0:01:49.8]}
19... Bf4+ {[%clk 0:01:56.1]} 20. Kb1 {[%clk 0:01:44]} 20... Rxc8 {[%clk
0:01:58]} 21. Qh5+ {[%clk 0:01:29.6]} 21... Kg8 {[%clk 0:01:52]} 22. c4 {[%clk
0:00:58.8]} 22... Nb6 {[%clk 0:01:20.7]} 23. Rg4 {[%clk 0:00:43]} 23... Qf6
{[%clk 0:01:14.3]} 24. Rxh4 {[%clk 0:00:39.8]} 24... Bh6 {[%clk 0:01:13.4]} 25.
Rg1 {[%clk 0:00:28.9]} 25... Re8 {[%clk 0:00:59.6]} 26. b3 {[%clk 0:00:19.9]}
26... Qxf2 {[%clk 0:00:55.6]} 27. Qd1 {[%clk 0:00:17.9]} 27... Qxh4 {[%clk
0:00:49.7]} 0-1